[Event "FIDE World Cup G12-B 2024"]
[Site "Batumi"]
[Date "2024.06.28"]
[Round "6.1"]
[White "Gunawardhana, Devindya Oshini"]
[Black "Pratitee Bordoloi"]
[Result "0-1"]
[ECO "B11"]
[WhiteElo "1980"]
[BlackElo "1796"]
[Annotator "NA RC"]
[PlyCount "112"]
[EventDate "2024.06.23"]
[EventType "swiss"]
[EventCountry "GEO"]
[SourceTitle "playchess.com"]
[Source "ChessBase"]
[SourceQuality "1"]
[TimeControl "5400+30"]

1. e4 {[%emt 0:00:01]} c6 {[%emt 0:00:04]} 2. Nc3 {[%emt 0:00:08]} d5 {[%emt 0:00:07]} 3. Nf3 {[%emt 0:00:04]} Bg4 {[%emt 0:00:11]} 4. h3 {[%emt 0:00:15]} Bxf3 {[%emt 0:00:21]} 5. Qxf3 {[%emt 0:00:08]} e6 {[%emt 0:00:16]} 6. d3 {[%emt 0:00:10]} Nf6 {[%emt 0:00:41]} 7. Be2 {[%emt 0:00:20]} Bd6 {[%emt 0:02:00]} 8. d4 {[%emt 0:01:12] B11: Caro-Kann: Two Knights Variation.} Be7 {[%emt 0:03:04]} 9. e5 {[%emt 0:05:38]} Nfd7 {[%emt 0:00:22]} 10. Qg3 {[%emt 0:03:33]} g6 {[%emt 0:01:46]} 11. a4 {[%emt 0:04:38]} (11. Bh6 $14) 11... a6 {[%emt 0:03:12]} 12. O-O {[%emt 0:03:57]} c5 {[%emt 0:01:17]} 13. dxc5 {[%emt 0:06:27]} Nc6 {[%emt 0:02:01]} 14. f4 {[%emt 0:06:45]} Nxc5 {[%emt 0:03:21]} 15. Bd3 {[%emt 0:09:18]} Rc8 {[%emt 0:09:22]} 16. Kh2 {[%emt 0:06:58]} (16. Rb1 $142) 16... Nxd3 {[%emt 0:10:01]} 17. cxd3 {[%emt 0:07:19]} Nd4 {[%emt 0:02:40]} 18. Qf2 {[%emt 0:03:00]} Nf5 {[%emt 0:02:09]} ({Black should try} 18... Nb3 19. Rb1 d4) 19. Bd2 {[%emt 0:05:11]} Bh4 {[%emt 0:07:29]} 20. Qf3 {[%emt 0:01:36]} h5 {[%emt 0:08:00]} 21. Rac1 {[%emt 0:03:18]} Kf8 {[%emt 0:03:54]} 22. Ne2 {[%emt 0:04:13]} Kg7 $15 {[%emt 0:02:32]} 23. a5 {[%emt 0:04:05]} Qd7 {[%emt 0:03:49]} 24. Bc3 {[%emt 0:06:48]} Qa4 {[%emt 0:04:57]} 25. Ra1 {[%emt 0:02:41]} Qb3 {[%emt 0:03:03]} 26. Nd4 {[%emt 0:02:05]} Nxd4 {[%emt 0:03:21]} 27. Bxd4 {[%emt 0:00:02]} Be7 {[%emt 0:02:37]} 28. Rac1 {[%emt 0:02:46]} Bb4 {[%emt 0:02:26]} 29. Qe3 {[%emt 0:01:28]} Be7 {[%emt 0:02:54]} 30. Qf3 {[%emt 0:02:40]} Qb5 {[%emt 0:01:22]} 31. Bc3 {[%emt 0:03:29]} Rc6 {[%emt 0:01:44]} 32. Qe3 {[%emt 0:03:10]} Rhc8 {[%emt 0:01:13]} 33. Rce1 {[%emt 0:01:30]} Bb4 {[%emt 0:01:08]} 34. Bxb4 {[%emt 0:01:18]} Qxb4 {[%emt 0:00:05]} 35. Qg3 {[%emt 0:00:37]} Qxa5 {[%emt 0:02:42]} 36. h4 {[%emt 0:01:06]} Kh7 {[%emt 0:01:07]} 37. Re3 {[%emt 0:00:32]} Qc7 {[%emt 0:01:48]} 38. Ref3 {[%emt 0:00:21]} Qe7 {[%emt 0:00:39]} 39. b3 {[%emt 0:00:34]} Rc1 {[%emt 0:01:42]} 40. R1f2 {[%emt 0:00:29]} R8c2 {[%emt 0:01:04]} 41. d4 {[%emt 0:00:33]} Rxf2 {[%emt 0:00:13]} 42. Rxf2 {[%emt 0:00:19]} Rd1 {[%emt 0:08:46]} 43. Rc2 {[%emt 0:00:32]} Rxd4 {[%emt 0:00:00]} 44. Rc8 {[%emt 0:00:38]} Rb4 {[%emt 0:00:00]} 45. Rb8 {[%emt 0:00:36]} Qc7 {[%emt 0:00:00]} 46. Re8 {[%emt 0:00:20]} Qc1 {[%emt 0:00:00]} 47. Re7 {[%emt 0:00:01]} Qxf4 {[%emt 0:00:00]} 48. Qxf4 {[%emt 0:00:06]} Rxf4 {[%emt 0:00:00]} 49. g3 {[%emt 0:00:17]} Rf5 {[%emt 0:00:00]} 50. Rxb7 {[%emt 0:00:03]} Kg7 {[%emt 0:00:00]} 51. Rb6 {[%emt 0:00:05]} Rxe5 {[%emt 0:00:00]} 52. Rxa6 {[%emt 0:00:01]} Re2+ {[%emt 0:00:00]} 53. Kg1 {[%emt 0:00:02]} Re3 {[%emt 0:00:00]} 54. b4 {[%emt 0:00:21]} Rxg3+ {[%emt 0:00:00]} 55. Kf2 {[%emt 0:00:02]} Rg4 {[%emt 0:00:00]} 56. b5 {[%emt 0:00:03]} Rxh4 {[%emt 0:00:00]} 0-1

[Event "FIDE World Cup G12-B 2024"]
[Site "Batumi"]
[Date "2024.06.28"]
[Round "6.2"]
[White "Amin-Erdene, Tsengel"]
[Black "Amanzhol, Khanzada"]
[Result "0-1"]
[ECO "E04"]
[WhiteElo "1491"]
[BlackElo "1685"]
[Annotator "NA RC"]
[PlyCount "98"]
[EventDate "2024.06.23"]
[EventType "swiss"]
[EventCountry "GEO"]
[SourceTitle "playchess.com"]
[Source "ChessBase"]
[SourceQuality "1"]
[TimeControl "5400+30"]

1. d4 {[%emt 0:00:15]} Nf6 {[%emt 0:00:13]} 2. c4 {[%emt 0:00:08]} e6 {[%emt 0:00:09]} 3. g3 {[%emt 0:00:14]} d5 {[%emt 0:00:11]} 4. Bg2 {[%emt 0:00:27]} Bb4+ {[%emt 0:00:29]} 5. Nd2 {[%emt 0:00:22]} O-O {[%emt 0:01:03]} 6. Ngf3 {[%emt 0:00:34]} dxc4 {[%emt 0:01:11]} 7. Qc2 {[%emt 0:00:58]} b5 {[%emt 0:04:09]} 8. a4 {[%emt 0:01:35]} Ba6 {[%emt 0:04:20]} 9. O-O {[%emt 0:07:23]} Nc6 {[%emt 0:07:23]} 10. axb5 {[%emt 0:07:15]} Bxb5 {[%emt 0:00:11]} 11. Nxc4 {[%emt 0:01:17]} Nd5 {[%emt 0:08:46]} 12. Rd1 {[%emt 0:04:37]} a5 {[%emt 0:12:43]} 13. e4 {[%emt 0:05:07]} Nf6 {[%emt 0:07:52]} 14. Bf4 {[%emt 0:07:10]} Qc8 {[%emt 0:05:07]} 15. d5 {[%emt 0:03:40]} Ne7 {[%emt 0:05:03]} 16. Ne3 {[%emt 0:02:27]} exd5 {[%emt 0:01:35]} 17. exd5 {[%emt 0:00:36]} Bd6 {[%emt 0:04:12]} 18. Bxd6 {[%emt 0:05:14]} cxd6 {[%emt 0:00:01]} 19. Qxc8 {[%emt 0:01:16]} Rfxc8 {[%emt 0:00:40]} 20. Nd4 {[%emt 0:01:04]} Bd7 {[%emt 0:00:06]} 21. Rac1 {[%emt 0:01:22]} a4 {[%emt 0:07:29]} 22. Nc6 {[%emt 0:03:00]} Kf8 {[%emt 0:01:32]} 23. Nc4 {[%emt 0:07:43]} Nexd5 {[%emt 0:05:19]} 24. Bxd5 {[%emt 0:05:35]} Nxd5 {[%emt 0:00:10]} 25. Rxd5 {[%emt 0:02:08]} Bxc6 {[%emt 0:01:04]} 26. Nxd6 {[%emt 0:04:43]} Bxd5 {[%emt 0:00:19]} 27. Rxc8+ {[%emt 0:01:32]} Rxc8 {[%emt 0:00:33]} 28. Nxc8 {[%emt 0:00:05]} Ke8 {[%emt 0:00:11]} 29. Nd6+ {[%emt 0:01:23]} Kd7 {[%emt 0:00:09]} 30. Nb5 {[%emt 0:01:06]} Kc6 {[%emt 0:01:01]} 31. Nc3 {[%emt 0:00:17]} Bb3 {[%emt 0:00:26]} 32. Kf1 {[%emt 0:00:40]} Kc5 {[%emt 0:00:08]} 33. Ke2 {[%emt 0:00:36]} Kc4 {[%emt 0:00:11]} 34. Kd2 {[%emt 0:00:41]} f6 {[%emt 0:01:05]} 35. f3 {[%emt 0:00:55]} Kd4 {[%emt 0:01:31]} 36. Ne2+ {[%emt 0:00:54]} Kc4 {[%emt 0:00:29]} 37. Nc3 {[%emt 0:00:17]} Kb4 {[%emt 0:00:11]} 38. Ne2 {[%emt 0:03:31]} Bd5 {[%emt 0:00:26]} 39. f4 {[%emt 0:04:58]} Kc4 {[%emt 0:00:50]} 40. h3 {[%emt 0:04:30]} Bf3 {[%emt 0:00:14]} 41. Nc1 {[%emt 0:01:52]} Kd4 {[%emt 0:00:35]} 42. Na2 {[%emt 0:00:59]} Bc6 {[%emt 0:00:20]} 43. Nc3 {[%emt 0:01:03]} Bd7 {[%emt 0:00:18]} 44. g4 {[%emt 0:03:34]} Kc4 {[%emt 0:01:56]} 45. Kc2 {[%emt 0:00:23]} h5 {[%emt 0:01:55]} 46. gxh5 {[%emt 0:01:46]} Bf5+ {[%emt 0:00:21]} 47. Kc1 {[%emt 0:00:16]} a3 {[%emt 0:01:56]} 48. h4 {[%emt 0:01:45]} Bh7 {[%emt 0:00:10]} 49. Na2 {[%emt 0:00:59]} Kb3 {[%emt 0:00:34]} 0-1

[Event "FIDE World Cup G12-B 2024"]
[Site "Batumi"]
[Date "2024.06.28"]
[Round "6.3"]
[White "Li, Sophie"]
[Black "Xu, Luna Yuexiu"]
[Result "1-0"]
[ECO "B52"]
[WhiteElo "1764"]
[BlackElo "1761"]
[Annotator "NA RC"]
[PlyCount "115"]
[EventDate "2024.06.23"]
[EventType "swiss"]
[EventCountry "GEO"]
[SourceTitle "playchess.com"]
[Source "ChessBase"]
[SourceQuality "1"]
[TimeControl "5400+30"]

1. e4 {[%emt 0:00:07]} c5 {[%emt 0:00:30]} 2. Nf3 {[%emt 0:00:37]} d6 {[%emt 0:00:39]} 3. Bb5+ {[%emt 0:00:30]} Bd7 {[%emt 0:00:56]} 4. Bxd7+ {[%emt 0:00:38]} Nxd7 {[%emt 0:00:52]} 5. O-O {[%emt 0:01:25]} Ngf6 {[%emt 0:01:26]} 6. Re1 {[%emt 0:01:08]} e6 {[%emt 0:01:36]} 7. c3 {[%emt 0:01:07]} Be7 {[%emt 0:01:49]} 8. d4 {[%emt 0:01:17]} O-O {[%emt 0:03:02]} 9. Nbd2 {[%emt 0:02:17]} Rc8 {[%emt 0:06:56]} 10. Nb3 {[%emt 0:03:11]} b6 {[%emt 0:02:02]} 11. h3 {[%emt 0:01:28]} d5 {[%emt 0:08:49]} 12. e5 {[%emt 0:06:39]} Ne4 {[%emt 0:01:32]} 13. Nbd2 {[%emt 0:02:37]} Nxd2 {[%emt 0:13:09]} 14. Bxd2 {[%emt 0:00:41]} Re8 {[%emt 0:03:00]} 15. Re3 {[%emt 0:02:23]} Nf8 {[%emt 0:03:22]} 16. Rc1 {[%emt 0:04:51]} Ng6 {[%emt 0:05:54]} 17. g3 {[%emt 0:01:15]} f5 {[%emt 0:02:32]} 18. exf6 {[%emt 0:02:34]} Bxf6 {[%emt 0:02:21]} 19. Qe2 {[%emt 0:01:54]} cxd4 {[%emt 0:02:46]} 20. Rxe6 {[%emt 0:04:39]} dxc3 {[%emt 0:01:35]} 21. Rxe8+ {[%emt 0:03:52]} Qxe8 {[%emt 0:00:13]} 22. Qxe8+ {[%emt 0:00:08]} Rxe8 {[%emt 0:00:12]} 23. Bxc3 {[%emt 0:00:40]} Rc8 {[%emt 0:01:35]} 24. Bd2 {[%emt 0:01:04]} Rxc1+ {[%emt 0:02:01]} 25. Bxc1 {[%emt 0:00:06]} Ne5 {[%emt 0:00:38]} 26. Nxe5 {[%emt 0:00:35]} Bxe5 {[%emt 0:00:08]} 27. Kf1 {[%emt 0:01:00]} Kf7 {[%emt 0:01:11]} 28. Ke2 {[%emt 0:00:42]} Ke6 {[%emt 0:00:46]} 29. Kd3 {[%emt 0:00:41]} Kd6 {[%emt 0:07:27]} 30. b3 {[%emt 0:00:58]} a6 {[%emt 0:01:31]} 31. Be3 {[%emt 0:02:30]} g6 {[%emt 0:01:48]} 32. Bxb6 {[%emt 0:00:59]} Kc6 {[%emt 0:01:41]} 33. Bd4 {[%emt 0:00:56]} Bd6 {[%emt 0:00:30]} 34. Bc3 {[%emt 0:01:45]} h5 {[%emt 0:02:00]} 35. a4 {[%emt 0:03:59]} Bc5 {[%emt 0:01:35]} 36. f4 {[%emt 0:02:12]} Kd6 {[%emt 0:04:00]} 37. b4 {[%emt 0:01:08]} Bf2 {[%emt 0:01:13]} 38. g4 {[%emt 0:00:20]} hxg4 {[%emt 0:03:47]} 39. hxg4 {[%emt 0:00:07]} Ke6 {[%emt 0:01:37]} 40. Bd4 {[%emt 0:01:37]} Bg3 {[%emt 0:00:50]} 41. Be3 {[%emt 0:00:49]} Kd6 {[%emt 0:01:00]} 42. Ke2 {[%emt 0:02:39]} d4 {[%emt 0:02:15]} 43. Bd2 {[%emt 0:01:07]} Ke6 {[%emt 0:02:17]} 44. Kf3 {[%emt 0:00:33]} Bh4 {[%emt 0:00:24]} 45. Ke4 {[%emt 0:01:24]} Bf6 {[%emt 0:00:44]} 46. Be1 {[%emt 0:00:52]} Bg7 {[%emt 0:01:45]} 47. Bf2 {[%emt 0:01:39]} Bf8 {[%emt 0:01:10]} 48. f5+ {[%emt 0:01:05]} gxf5+ {[%emt 0:00:23]} 49. gxf5+ {[%emt 0:00:04]} Kf7 {[%emt 0:01:13]} 50. b5 {[%emt 0:00:17]} axb5 {[%emt 0:00:41]} 51. axb5 {[%emt 0:00:08]} Bd6 {[%emt 0:00:11]} 52. Bxd4 {[%emt 0:00:18]} Ke7 {[%emt 0:00:37]} 53. Kd5 {[%emt 0:00:13]} Kd7 {[%emt 0:00:54]} 54. f6 {[%emt 0:00:14]} Bf8 {[%emt 0:00:23]} 55. Bc5 {[%emt 0:00:20]} Bh6 {[%emt 0:00:29]} 56. f7 {[%emt 0:00:18]} Bg7 {[%emt 0:00:38]} 57. f8=Q {[%emt 0:00:30]} Bxf8 {[%emt 0:00:03]} 58. Bxf8 {[%emt 0:00:07]} 1-0

[Event "FIDE World Cup G12-B 2024"]
[Site "Batumi"]
[Date "2024.06.28"]
[Round "6.4"]
[White "Vazquez Sanchez, Antia"]
[Black "Sreekarthika Velmurugan"]
[Result "1/2-1/2"]
[ECO "D11"]
[WhiteElo "1607"]
[BlackElo "1838"]
[Annotator "NA RC"]
[PlyCount "135"]
[EventDate "2024.06.23"]
[EventType "swiss"]
[EventCountry "GEO"]
[SourceTitle "playchess.com"]
[Source "ChessBase"]
[SourceQuality "1"]
[TimeControl "5400+30"]

1. d4 {[%emt 0:00:02]} d5 {[%emt 0:01:11]} 2. c4 {[%emt 0:00:16]} c6 {[%emt 0:00:05]} 3. Qc2 {[%emt 0:00:18]} Nf6 {[%emt 0:00:43]} 4. Nf3 {[%emt 0:04:47]} g6 {[%emt 0:00:06]} 5. Nbd2 {[%emt 0:02:14]} Bg7 {[%emt 0:04:11]} 6. g3 {[%emt 0:00:39]} Bf5 {[%emt 0:03:23]} 7. Qd1 {[%emt 0:05:18]} O-O {[%emt 0:03:02]} 8. Bg2 {[%emt 0:00:32]} c5 {[%emt 0:04:52]} 9. O-O {[%emt 0:04:49]} Nc6 {[%emt 0:12:33]} 10. dxc5 {[%emt 0:10:04]} dxc4 {[%emt 0:04:45]} 11. Nxc4 {[%emt 0:00:57]} Ne4 {[%emt 0:00:21]} 12. Nh4 {[%emt 0:09:19]} Qxd1 {[%emt 0:03:14]} 13. Rxd1 {[%emt 0:00:28]} Nd4 {[%emt 0:01:36]} 14. Nxf5 {[%emt 0:05:44]} gxf5 {[%emt 0:00:06]} 15. Bxe4 {[%emt 0:02:43]} fxe4 {[%emt 0:00:24]} 16. Kf1 {[%emt 0:00:43]} Rac8 {[%emt 0:00:56]} 17. Be3 {[%emt 0:07:51]} Ne6 {[%emt 0:05:11]} 18. Rac1 {[%emt 0:03:18]} Nxc5 {[%emt 0:03:09]} 19. Bd4 {[%emt 0:05:29]} Bxd4 {[%emt 0:12:21]} 20. Rxd4 {[%emt 0:00:07]} f5 {[%emt 0:03:27]} 21. Nd2 {[%emt 0:07:07]} Ne6 {[%emt 0:03:46]} 22. Rdc4 {[%emt 0:02:23]} Rcd8 {[%emt 0:01:04]} 23. Ke1 {[%emt 0:01:01]} Ng5 {[%emt 0:03:23]} 24. h4 {[%emt 0:06:09]} Ne6 {[%emt 0:04:32]} 25. Nb3 {[%emt 0:02:34]} Rd6 {[%emt 0:01:23]} 26. Nc5 {[%emt 0:00:57]} Nd8 {[%emt 0:01:58]} 27. g4 {[%emt 0:02:54]} b6 {[%emt 0:08:44]} 28. Nb3 {[%emt 0:01:23]} Rh6 {[%emt 0:02:15]} 29. h5 {[%emt 0:02:37]} Nf7 {[%emt 0:01:49]} 30. gxf5 {[%emt 0:07:05]} Nd6 {[%emt 0:00:32]} 31. Rc7 {[%emt 0:00:24]} Nxf5 {[%emt 0:01:11]} 32. Rxa7 {[%emt 0:06:18]} Rxh5 {[%emt 0:00:41]} 33. Rb7 {[%emt 0:00:00]} Rh2 {[%emt 0:04:29]} 34. Rxb6 {[%emt 0:00:00]} Nd6 {[%emt 0:01:38]} 35. Kd2 {[%emt 0:00:00]} Rd8 {[%emt 0:02:52]} 36. Ke3 {[%emt 0:00:25]} Nf5+ {[%emt 0:00:58]} 37. Kxe4 {[%emt 0:00:45]} Rxf2 {[%emt 0:00:28]} 38. Rg1+ {[%emt 0:00:33]} Kf7 {[%emt 0:00:14]} 39. Re1 {[%emt 0:00:19]} Nd6+ {[%emt 0:01:10]} 40. Ke3 {[%emt 0:00:04]} Rf6 {[%emt 0:00:32]} 41. Rb4 {[%emt 0:00:25]} h5 {[%emt 0:00:36]} 42. Rf4 {[%emt 0:00:31]} Nf5+ {[%emt 0:00:40]} 43. Kf2 {[%emt 0:02:28]} e5 {[%emt 0:00:23]} 44. Rf3 {[%emt 0:00:00]} e4 {[%emt 0:00:24]} 45. Rf4 {[%emt 0:00:00]} e3+ {[%emt 0:00:04]} 46. Kg1 {[%emt 0:00:00]} Rg8+ {[%emt 0:00:24]} 47. Kh2 {[%emt 0:00:00]} Nh6 {[%emt 0:01:17]} 48. Rxf6+ {[%emt 0:01:01]} Kxf6 {[%emt 0:00:03]} 49. Nc5 {[%emt 0:00:45]} Ng4+ {[%emt 0:00:34]} 50. Kh3 {[%emt 0:00:45]} Nf2+ {[%emt 0:00:22]} 51. Kh2 {[%emt 0:00:20]} h4 {[%emt 0:00:27]} 52. Nd3 {[%emt 0:00:14]} Nxd3 {[%emt 0:00:58]} 53. exd3 {[%emt 0:00:05]} Rg3 {[%emt 0:00:03]} 54. a4 {[%emt 0:00:10]} Ke5 {[%emt 0:00:08]} 55. a5 {[%emt 0:00:48]} Kd4 {[%emt 0:00:52]} 56. a6 {[%emt 0:00:28]} Kxd3 {[%emt 0:00:38]} 57. b4 {[%emt 0:00:27]} Rf3 {[%emt 0:00:54]} 58. a7 {[%emt 0:00:35]} Rf2+ {[%emt 0:00:05]} 59. Kh3 {[%emt 0:00:22]} Ra2 {[%emt 0:00:03]} 60. Rd1+ {[%emt 0:01:26]} Kc2 {[%emt 0:00:22]} 61. Rd7 {[%emt 0:00:09]} e2 {[%emt 0:00:36]} 62. Re7 {[%emt 0:00:22]} Kd1 {[%emt 0:00:06]} 63. b5 {[%emt 0:00:13]} Ra3+ {[%emt 0:01:09]} 64. Kh2 {[%emt 0:00:12]} Ra2 {[%emt 0:00:09]} 65. Kh3 {[%emt 0:02:38]} Ra3+ {[%emt 0:02:28]} 66. Kxh4 Ra4+ {[%emt 0:00:30]} 67. Kh5 Ra5 {[%emt 0:00:30]} 68. Kh6 {[%emt 0:01:30]} 1/2-1/2

[Event "FIDE World Cup G12-B 2024"]
[Site "Batumi"]
[Date "2024.06.28"]
[Round "6.5"]
[White "Shomanova, Adiya"]
[Black "Pavithra R V"]
[Result "0-1"]
[ECO "B38"]
[WhiteElo "1542"]
[BlackElo "1614"]
[Annotator "NA RC"]
[PlyCount "130"]
[EventDate "2024.06.23"]
[EventType "swiss"]
[EventCountry "GEO"]
[SourceTitle "playchess.com"]
[Source "ChessBase"]
[SourceQuality "1"]
[TimeControl "5400+30"]

1. e4 {[%emt 0:00:03]} c5 {[%emt 0:00:03]} 2. Nf3 {[%emt 0:00:10]} g6 {[%emt 0:00:05]} 3. d4 {[%emt 0:00:10]} cxd4 {[%emt 0:00:03]} 4. Nxd4 {[%emt 0:00:05]} Bg7 {[%emt 0:00:04]} 5. c4 {[%emt 0:00:29]} Nc6 {[%emt 0:00:12]} 6. Be3 {[%emt 0:00:12]} d6 {[%emt 0:00:30]} 7. Nc3 {[%emt 0:01:52]} Nf6 {[%emt 0:00:06]} 8. Be2 {[%emt 0:00:53]} O-O {[%emt 0:00:09]} 9. O-O {[%emt 0:01:34]} Bd7 {[%emt 0:03:33]} 10. Rc1 {[%emt 0:00:47]} Nxd4 {[%emt 0:00:19]} 11. Bxd4 {[%emt 0:00:13]} Bc6 {[%emt 0:00:05]} 12. Qd3 {[%emt 0:01:19]} a5 {[%emt 0:02:31]} 13. b3 {[%emt 0:01:42]} Nd7 {[%emt 0:01:47]} 14. Bxg7 {[%emt 0:01:43]} Kxg7 {[%emt 0:00:03]} 15. Qd4+ {[%emt 0:18:39]} Kg8 {[%emt 0:01:24]} 16. Bg4 {[%emt 0:06:18]} Nf6 {[%emt 0:08:30]} 17. Be2 {[%emt 0:04:10]} Nd7 {[%emt 0:03:17]} 18. Bg4 {[%emt 0:10:10]} Qb6 {[%emt 0:11:16]} 19. Qd2 {[%emt 0:01:59]} Ne5 {[%emt 0:01:03]} 20. Bh3 {[%emt 0:00:45]} a4 {[%emt 0:07:17]} 21. Rb1 {[%emt 0:12:05]} axb3 {[%emt 0:03:43]} 22. axb3 {[%emt 0:00:26]} Ra3 {[%emt 0:01:12]} 23. Qb2 {[%emt 0:04:22]} Rfa8 {[%emt 0:01:04]} 24. Qc2 {[%emt 0:05:27]} Qb4 {[%emt 0:07:25]} 25. Rfc1 {[%emt 0:07:59]} Qb6 {[%emt 0:06:58]} 26. Kh1 {[%emt 0:00:26]} e6 {[%emt 0:02:13]} 27. f4 {[%emt 0:01:22]} Nd7 {[%emt 0:00:08]} 28. f5 {[%emt 0:00:34]} exf5 {[%emt 0:00:15]} 29. exf5 {[%emt 0:00:09]} Qe3 {[%emt 0:00:16]} 30. Bg4 {[%emt 0:03:14]} Ne5 {[%emt 0:00:37]} 31. Re1 {[%emt 0:01:19]} Qd4 {[%emt 0:02:26]} 32. Bh3 {[%emt 0:02:14]} Nd3 {[%emt 0:03:34]} 33. Rf1 {[%emt 0:02:17]} Nf4 {[%emt 0:03:45]} 34. Ne2 {[%emt 0:00:59]} Nxe2 {[%emt 0:00:05]} 35. Qxe2 {[%emt 0:00:05]} Ra2 {[%emt 0:00:04]} 36. Qe7 {[%emt 0:06:43]} Qd2 {[%emt 0:03:00]} 37. Rbd1 {[%emt 0:02:23]} Qh6 {[%emt 0:02:07]} 38. Rd3 {[%emt 0:01:44]} Re8 {[%emt 0:28:21]} 39. Qxd6 {[%emt 0:01:45]} Rf2 {[%emt 0:00:00]} 40. Rg1 {[%emt 0:00:54]} Rf4 {[%emt 0:00:00]} 41. fxg6 {[%emt 0:00:38]} hxg6 {[%emt 0:00:00]} 42. Rg3 {[%emt 0:00:35]} Rh4 {[%emt 0:00:00]} 43. Qd3 {[%emt 0:00:29]} Be4 {[%emt 0:00:00]} 44. Qd7 {[%emt 0:00:26]} Rf8 {[%emt 0:00:00]} 45. Rf1 {[%emt 0:00:24]} Bc6 {[%emt 0:00:00]} 46. Qd3 {[%emt 0:00:22]} Re8 {[%emt 0:00:00]} 47. b4 {[%emt 0:00:36]} Rf4 {[%emt 0:00:00]} 48. b5 {[%emt 0:00:36]} Be4 {[%emt 0:00:00]} 49. Qd1 {[%emt 0:00:22]} Rh4 {[%emt 0:00:00]} 50. Qd7 {[%emt 0:00:18]} Rf8 {[%emt 0:00:00]} 51. c5 {[%emt 0:00:24]} Qh5 {[%emt 0:00:00]} 52. Rc1 {[%emt 0:00:39]} Qh6 {[%emt 0:00:00]} 53. Re1 {[%emt 0:00:39]} Qh5 {[%emt 0:00:00]} 54. Rc3 {[%emt 0:00:43]} Qg5 {[%emt 0:00:00]} 55. Rce3 {[%emt 0:00:31]} Qxc5 {[%emt 0:00:00]} 56. Qd1 {[%emt 0:00:35]} Re8 {[%emt 0:00:00]} 57. Qe2 {[%emt 0:00:31]} Qg5 {[%emt 0:00:45]} 58. Bd7 {[%emt 0:00:28]} Re7 {[%emt 0:00:16]} 59. Bh3 {[%emt 0:00:20]} Qh6 {[%emt 0:02:56]} 60. Qd2 {[%emt 0:00:40]} Rxh3 {[%emt 0:05:00]} 61. Qd8+ {[%emt 0:00:12]} Kh7 {[%emt 0:00:04]} 62. Rxe4 {[%emt 0:00:29]} Rxe4 {[%emt 0:00:05]} 63. Rd1 {[%emt 0:00:52]} Rxh2+ {[%emt 0:00:10]} 64. Kg1 {[%emt 0:00:03]} Rh1+ {[%emt 0:00:04]} 65. Kf2 {[%emt 0:00:09]} Qf4# {[%emt 0:00:03]} 0-1

[Event "FIDE World Cup G12-B 2024"]
[Site "Batumi"]
[Date "2024.06.28"]
[Round "6.6"]
[White "Abylaykyzy, Bibisara"]
[Black "Bassari, Senem Gul"]
[Result "0-1"]
[ECO "B23"]
[WhiteElo "1577"]
[BlackElo "1768"]
[Annotator "NA RC"]
[PlyCount "98"]
[EventDate "2024.06.23"]
[EventType "swiss"]
[EventCountry "GEO"]
[SourceTitle "playchess.com"]
[Source "ChessBase"]
[SourceQuality "1"]
[TimeControl "5400+30"]

1. e4 {[%emt 0:00:03]} c5 {[%emt 0:00:12]} 2. Nc3 {[%emt 0:00:07]} d6 {[%emt 0:00:07]} 3. f4 {[%emt 0:00:07]} Nc6 {[%emt 0:00:21]} 4. Bb5 {[%emt 0:00:06]} Bd7 {[%emt 0:00:19]} 5. Bxc6 {[%emt 0:00:28]} Bxc6 {[%emt 0:00:08]} 6. d3 {[%emt 0:00:08]} g6 {[%emt 0:00:40]} 7. Nf3 {[%emt 0:00:06]} Bg7 {[%emt 0:00:05]} 8. O-O {[%emt 0:00:14]} e6 {[%emt 0:01:39]} 9. Qe1 {[%emt 0:01:11]} Ne7 {[%emt 0:00:33]} 10. Be3 {[%emt 0:02:12]} b6 {[%emt 0:01:52]} 11. Rd1 {[%emt 0:06:00]} d5 {[%emt 0:01:04]} 12. exd5 {[%emt 0:01:22]} Nxd5 {[%emt 0:03:52]} 13. Ne5 {[%emt 0:07:07]} Bb7 {[%emt 0:02:15]} 14. Ne4 {[%emt 0:03:20]} Qc7 {[%emt 0:06:58]} 15. Bc1 {[%emt 0:04:07]} O-O-O {[%emt 0:05:11]} 16. Ng5 {[%emt 0:10:17]} Rdf8 {[%emt 0:04:19]} 17. Qe2 {[%emt 0:12:49]} h6 {[%emt 0:02:35]} 18. Nxe6 {[%emt 0:02:58]} fxe6 {[%emt 0:02:00]} 19. Nxg6 {[%emt 0:00:34]} Qd6 {[%emt 0:08:08]} 20. c3 {[%emt 0:04:45]} Rfg8 {[%emt 0:15:00]} 21. Nxh8 {[%emt 0:00:53]} Bxh8 {[%emt 0:00:26]} 22. Rf2 {[%emt 0:20:08]} Bxc3 {[%emt 0:07:47]} 23. bxc3 {[%emt 0:03:02]} Nxc3 {[%emt 0:00:09]} 24. Qe1 {[%emt 0:05:54]} Nxd1 {[%emt 0:00:34]} 25. Qxd1 {[%emt 0:00:54]} Qd5 {[%emt 0:03:10]} 26. Qe2 {[%emt 0:01:36]} h5 {[%emt 0:03:08]} 27. h3 {[%emt 0:06:54]} Kd7 {[%emt 0:05:57]} 28. Qc2 {[%emt 0:01:50]} Rg3 {[%emt 0:04:51]} 29. d4 {[%emt 0:01:58]} Qxd4 {[%emt 0:05:35]} 30. Qh7+ {[%emt 0:01:47]} Rg7 {[%emt 0:00:54]} 31. Qc2 {[%emt 0:02:12]} Rxg2+ {[%emt 0:00:12]} 32. Kf1 {[%emt 0:00:04]} Rxf2+ {[%emt 0:02:10]} 33. Qxf2 {[%emt 0:00:05]} Qd1+ {[%emt 0:00:15]} 34. Qe1 {[%emt 0:00:29]} Qf3+ {[%emt 0:01:10]} 35. Qf2 {[%emt 0:00:08]} Qxh3+ {[%emt 0:00:35]} 36. Ke1 {[%emt 0:00:33]} Qh1+ {[%emt 0:00:18]} 37. Kd2 {[%emt 0:00:13]} Qd5+ {[%emt 0:00:21]} 38. Ke1 {[%emt 0:00:06]} Qe4+ {[%emt 0:00:26]} 39. Kf1 {[%emt 0:00:08]} Bd5 {[%emt 0:01:47]} 40. Qg3 {[%emt 0:01:20]} Qc4+ {[%emt 0:00:50]} 41. Kf2 {[%emt 0:00:20]} Qxc1 {[%emt 0:00:28]} 42. Qg7+ {[%emt 0:00:36]} Kc6 {[%emt 0:00:11]} 43. Qf8 {[%emt 0:01:41]} Qd2+ {[%emt 0:00:22]} 44. Kf1 {[%emt 0:00:27]} Bc4+ {[%emt 0:01:11]} 45. Kg1 {[%emt 0:00:24]} Qe1+ {[%emt 0:00:10]} 46. Kg2 {[%emt 0:00:32]} Bd5+ {[%emt 0:00:27]} 47. Kh3 {[%emt 0:00:40]} Qh1+ {[%emt 0:00:27]} 48. Kg3 {[%emt 0:00:17]} Qg2+ {[%emt 0:00:05]} 49. Kh4 {[%emt 0:00:06]} Qg4# {[%emt 0:00:13]} 0-1